[Event "Early-Titled-Tuesday-Blitz-May-14-2024"]
[Site "Chess.com"]
[Date "2024.05.14"]
[Round "7"]
[White "CristianS27"]
[Black "Orujov2008"]
[Result "0-1"]
[WhiteElo "2550"]
[BlackElo "2755"]
[TimeControl "180+1"]
[EndTime "9:20:21 PDT"]
[Termination "Orujov2008 won by checkmate"]

1. e4 {[%clk 0:02:59.1]} 1... c5 {[%clk 0:02:59.7]} 2. Nf3 {[%clk 0:02:55.9]}
2... d6 {[%clk 0:02:59.6]} 3. d4 {[%clk 0:02:53.8]} 3... cxd4 {[%clk 0:03:00.5]}
4. Nxd4 {[%clk 0:02:54.7]} 4... Nf6 {[%clk 0:03:00.4]} 5. Nc3 {[%clk 0:02:55.2]}
5... a6 {[%clk 0:03:00.8]} 6. Be3 {[%clk 0:02:55.6]} 6... e5 {[%clk 0:03:00.7]}
7. Nf3 {[%clk 0:02:55.9]} 7... Be7 {[%clk 0:02:59.3]} 8. Bc4 {[%clk 0:02:56.1]}
8... O-O {[%clk 0:02:57.2]} 9. O-O {[%clk 0:02:55.8]} 9... Be6 {[%clk
0:02:56.9]} 10. Bb3 {[%clk 0:02:55.8]} 10... Nc6 {[%clk 0:02:56.3]} 11. Qe2
{[%clk 0:02:56]} 11... Rc8 {[%clk 0:02:49.7]} 12. Rfd1 {[%clk 0:02:56]} 12...
Qc7 {[%clk 0:02:29.8]} 13. Bg5 {[%clk 0:02:54]} 13... Na5 {[%clk 0:02:26.1]} 14.
Bxf6 {[%clk 0:02:51.6]} 14... Bxf6 {[%clk 0:02:25.7]} 15. Rac1 {[%clk
0:02:49.9]} 15... Nxb3 {[%clk 0:02:14.2]} 16. axb3 {[%clk 0:02:48.7]} 16... Rfd8
{[%clk 0:02:13.6]} 17. Nd5 {[%clk 0:02:48.3]} 17... Bxd5 {[%clk 0:02:08]} 18.
Rxd5 {[%clk 0:02:49.2]} 18... b5 {[%clk 0:02:02.2]} 19. c3 {[%clk 0:02:45.2]}
19... Qb6 {[%clk 0:01:52.4]} 20. Rcd1 {[%clk 0:02:43.9]} 20... g6 {[%clk
0:01:47.5]} 21. g3 {[%clk 0:02:43.7]} 21... Be7 {[%clk 0:01:43.5]} 22. h4 {[%clk
0:02:43.9]} 22... h5 {[%clk 0:01:37.5]} 23. Kg2 {[%clk 0:02:43.9]} 23... b4
{[%clk 0:01:33]} 24. c4 {[%clk 0:02:43.4]} 24... Rc6 {[%clk 0:01:27.6]} 25. Qd2
{[%clk 0:02:27.8]} 25... Rdc8 {[%clk 0:01:22.5]} 26. Ne1 {[%clk 0:02:07.7]}
26... Kg7 {[%clk 0:01:17.9]} 27. Nc2 {[%clk 0:02:07.4]} 27... a5 {[%clk
0:01:12.6]} 28. Ne3 {[%clk 0:02:02.8]} 28... Qc7 {[%clk 0:01:09.6]} 29. Rb5
{[%clk 0:01:55.2]} 29... Rc5 {[%clk 0:01:04]} 30. Nd5 {[%clk 0:01:52.2]} 30...
Qa7 {[%clk 0:01:03.9]} 31. Rxc5 {[%clk 0:01:42.3]} 31... dxc5 {[%clk 0:01:00.8]}
32. Ra1 {[%clk 0:01:07.1]} 32... Bd8 {[%clk 0:00:57.4]} 33. Qe2 {[%clk
0:00:59.1]} 33... Rc6 {[%clk 0:00:53.9]} 34. g4 {[%clk 0:00:55.2]} 34... hxg4
{[%clk 0:00:49.2]} 35. Qxg4 {[%clk 0:00:56.1]} 35... Rd6 {[%clk 0:00:49.3]} 36.
h5 {[%clk 0:00:54.7]} 36... Kf8 {[%clk 0:00:41]} 37. h6 {[%clk 0:00:53.5]} 37...
Kg8 {[%clk 0:00:36.8]} 38. h7+ {[%clk 0:00:47.8]} 38... Kh8 {[%clk 0:00:33.7]}
39. Qc8 {[%clk 0:00:41.6]} 39... f6 {[%clk 0:00:29.7]} 40. Nxf6 {[%clk
0:00:36.8]} 40... Qe7 {[%clk 0:00:25.4]} 41. Nd5 {[%clk 0:00:28.6]} 41... Qg5+
{[%clk 0:00:25]} 42. Kf1 {[%clk 0:00:20.5]} 42... Kxh7 {[%clk 0:00:24.6]} 43.
Ke2 {[%clk 0:00:14.1]} 43... Qh5+ {[%clk 0:00:21.9]} 44. Kd2 {[%clk 0:00:09.3]}
44... Qf3 {[%clk 0:00:21.9]} 45. Re1 {[%clk 0:00:03.6]} 45... Qxf2+ {[%clk
0:00:17.2]} 46. Re2 {[%clk 0:00:03.9]} 46... Bg5+ {[%clk 0:00:07.5]} 47. Kd1
{[%clk 0:00:03.6]} 47... Qf1+ {[%clk 0:00:07.3]} 48. Re1 {[%clk 0:00:02.2]}
48... Qd3# {[%clk 0:00:07]} 0-1

[Event "Early-Titled-Tuesday-Blitz-May-14-2024"]
[Site "Chess.com"]
[Date "2024.05.14"]
[Round "7"]
[White "FXDon77"]
[Black "Dolphin_2010"]
[Result "1-0"]
[WhiteElo "2868"]
[BlackElo "2624"]
[TimeControl "180+1"]
[EndTime "9:20:21 PDT"]
[Termination "FXDon77 won on time"]

1. e4 {[%clk 0:03:00.9]} 1... c6 {[%clk 0:02:59]} 2. d4 {[%clk 0:02:59.4]} 2...
d5 {[%clk 0:02:59.9]} 3. e5 {[%clk 0:03:00.1]} 3... Bf5 {[%clk 0:02:41.1]} 4. h4
{[%clk 0:02:57.8]} 4... h6 {[%clk 0:02:40.9]} 5. g4 {[%clk 0:02:52.2]} 5... Bd7
{[%clk 0:02:39.2]} 6. Nc3 {[%clk 0:02:51.1]} 6... Qc8 {[%clk 0:02:34.9]} 7. Be2
{[%clk 0:02:41.9]} 7... e6 {[%clk 0:02:33.6]} 8. Be3 {[%clk 0:02:37]} 8... c5
{[%clk 0:02:32.2]} 9. Nf3 {[%clk 0:02:35.1]} 9... cxd4 {[%clk 0:02:29.4]} 10.
Nxd4 {[%clk 0:02:35.3]} 10... Nc6 {[%clk 0:02:29.6]} 11. f4 {[%clk 0:02:32.9]}
11... h5 {[%clk 0:02:23.1]} 12. gxh5 {[%clk 0:02:24.6]} 12... Nh6 {[%clk
0:02:07.3]} 13. Bd3 {[%clk 0:02:17]} 13... Nxd4 {[%clk 0:02:04.4]} 14. Bxd4
{[%clk 0:02:16.6]} 14... Bc5 {[%clk 0:02:04.9]} 15. Bxc5 {[%clk 0:02:03.3]}
15... Qxc5 {[%clk 0:02:05.8]} 16. Qd2 {[%clk 0:01:57.1]} 16... Ng4 {[%clk
0:01:51.9]} 17. Qe2 {[%clk 0:01:28.5]} 17... Ne3 {[%clk 0:01:44.5]} 18. a3
{[%clk 0:01:14.5]} 18... Qb6 {[%clk 0:01:20.7]} 19. Kd2 {[%clk 0:00:49.4]} 19...
d4 {[%clk 0:01:16.3]} 20. Ne4 {[%clk 0:00:47.9]} 20... Nf5 {[%clk 0:00:58.1]}
21. Kc1 {[%clk 0:00:24.9]} 21... Rc8 {[%clk 0:00:48.6]} 22. Rg1 {[%clk
0:00:23.3]} 22... Bc6 {[%clk 0:00:44.9]} 23. Nd6+ {[%clk 0:00:21]} 23... Nxd6
{[%clk 0:00:43.1]} 24. exd6 {[%clk 0:00:21.9]} 24... Bd5 {[%clk 0:00:39.4]} 25.
Rxg7 {[%clk 0:00:18.5]} 25... Qxd6 {[%clk 0:00:37.9]} 26. f5 {[%clk 0:00:16.5]}
26... Qf4+ {[%clk 0:00:33]} 27. Kb1 {[%clk 0:00:16]} 27... Qxh4 {[%clk
0:00:29.3]} 28. b3 {[%clk 0:00:15.7]} 28... Qxh5 {[%clk 0:00:25.8]} 29. Qe5
{[%clk 0:00:14.5]} 29... Qh2 {[%clk 0:00:13.4]} 30. Qxd4 {[%clk 0:00:12.2]}
30... Qh4 {[%clk 0:00:06.6]} 31. Rg8+ {[%clk 0:00:09.6]} 31... Kd7 {[%clk
0:00:07]} 32. fxe6+ {[%clk 0:00:09.4]} 32... fxe6 {[%clk 0:00:05.1]} 33. Bb5+
{[%clk 0:00:09.5]} 33... Kc7 {[%clk 0:00:05]} 34. Qe5+ {[%clk 0:00:04.8]} 34...
Kb6 {[%clk 0:00:04.9]} 35. Rxc8 {[%clk 0:00:03.7]} 35... Rxc8 {[%clk 0:00:03.4]}
36. Bd3 {[%clk 0:00:02.3]} 36... Qf2 {[%clk 0:00:02.9]} 37. Qd6+ {[%clk
0:00:02.4]} 37... Rc6 {[%clk 0:00:02.7]} 38. Qb4+ {[%clk 0:00:02.8]} 38... Kc7
{[%clk 0:00:02.6]} 39. Qe7+ {[%clk 0:00:03.1]} 39... Kb8 {[%clk 0:00:02]} 40.
Qd8+ {[%clk 0:00:01.3]} 40... Rc8 {[%clk 0:00:02.3]} 41. Qd6+ {[%clk 0:00:01.9]}
41... Ka8 {[%clk 0:00:02.8]} 42. Qe5 {[%clk 0:00:02.2]} 42... Qd2 {[%clk
0:00:01.7]} 43. Kb2 {[%clk 0:00:02.5]} 43... a5 {[%clk 0:00:01.6]} 44. a4 {[%clk
0:00:02.5]} 1-0

[Event "Early-Titled-Tuesday-Blitz-May-14-2024"]
[Site "Chess.com"]
[Date "2024.05.14"]
[Round "7"]
[White "GeorgiosSouleidis"]
[Black "Payyappat"]
[Result "1-0"]
[WhiteElo "2673"]
[BlackElo "2526"]
[TimeControl "180+1"]
[EndTime "9:20:21 PDT"]
[Termination "GeorgiosSouleidis won by resignation"]

1. e4 {[%clk 0:03:00.9]} 1... c6 {[%clk 0:02:57.3]} 2. Nc3 {[%clk 0:03:00.4]}
2... d5 {[%clk 0:02:58.2]} 3. Nf3 {[%clk 0:03:00.9]} 3... dxe4 {[%clk
0:02:57.9]} 4. Nxe4 {[%clk 0:03:01.8]} 4... Nf6 {[%clk 0:02:57.8]} 5. Qe2 {[%clk
0:03:02.4]} 5... Nxe4 {[%clk 0:02:57.1]} 6. Qxe4 {[%clk 0:03:03.3]} 6... Nd7
{[%clk 0:02:57.4]} 7. d4 {[%clk 0:03:03.2]} 7... Nf6 {[%clk 0:02:58.3]} 8. Qd3
{[%clk 0:03:03.8]} 8... g6 {[%clk 0:02:57.6]} 9. Be2 {[%clk 0:02:57.9]} 9... Bg7
{[%clk 0:02:57.2]} 10. O-O {[%clk 0:02:58]} 10... O-O {[%clk 0:02:55.9]} 11. Qb3
{[%clk 0:02:57.9]} 11... b5 {[%clk 0:02:53.2]} 12. a4 {[%clk 0:02:54.5]} 12...
Be6 {[%clk 0:02:52.7]} 13. Qa3 {[%clk 0:02:47.5]} 13... a6 {[%clk 0:02:46.4]}
14. c3 {[%clk 0:02:31.6]} 14... Nd5 {[%clk 0:02:43.2]} 15. Re1 {[%clk 0:02:23]}
15... Qc7 {[%clk 0:02:39.1]} 16. h3 {[%clk 0:02:22]} 16... Nb6 {[%clk
0:02:37.5]} 17. a5 {[%clk 0:02:11.2]} 17... Nd5 {[%clk 0:02:35.8]} 18. Bf1
{[%clk 0:02:05.5]} 18... Rfe8 {[%clk 0:02:16.2]} 19. b4 {[%clk 0:01:59.4]} 19...
Bf5 {[%clk 0:02:13.5]} 20. Ne5 {[%clk 0:01:54.8]} 20... f6 {[%clk 0:02:09]} 21.
Nd3 {[%clk 0:01:51]} 21... e5 {[%clk 0:02:08.4]} 22. dxe5 {[%clk 0:01:50.9]}
22... fxe5 {[%clk 0:02:08.3]} 23. Nc5 {[%clk 0:01:48.4]} 23... e4 {[%clk
0:02:05.3]} 24. Bd2 {[%clk 0:01:42.1]} 24... e3 {[%clk 0:01:51.4]} 25. fxe3
{[%clk 0:01:39.3]} 25... Bh6 {[%clk 0:01:37]} 26. Qc1 {[%clk 0:01:20]} 26... Qg3
{[%clk 0:01:33.9]} 27. e4 {[%clk 0:01:08.7]} 27... Bxd2 {[%clk 0:01:21.7]} 28.
Qxd2 {[%clk 0:01:07.7]} 28... Nf4 {[%clk 0:01:22]} 29. Kh1 {[%clk 0:00:51.7]}
29... Bxh3 {[%clk 0:00:37.8]} 30. gxh3 {[%clk 0:00:49.2]} 30... Nxh3 {[%clk
0:00:36.7]} 31. Bxh3 {[%clk 0:00:47]} 31... Qxh3+ {[%clk 0:00:37.6]} 32. Kg1
{[%clk 0:00:33]} 32... Qg3+ {[%clk 0:00:35.9]} 33. Qg2 {[%clk 0:00:31.2]} 33...
Qxc3 {[%clk 0:00:34.9]} 34. e5 {[%clk 0:00:21.2]} 34... Qxb4 {[%clk 0:00:28.8]}
35. Ne4 {[%clk 0:00:19.7]} 35... Qd4+ {[%clk 0:00:22.2]} 36. Qf2 {[%clk
0:00:12.7]} 36... Qxf2+ {[%clk 0:00:09.5]} 37. Kxf2 {[%clk 0:00:13.6]} 37... Kg7
{[%clk 0:00:08.6]} 38. Nc5 {[%clk 0:00:12.6]} 38... Rad8 {[%clk 0:00:07.3]} 39.
Kf3 {[%clk 0:00:11.2]} 39... Rd5 {[%clk 0:00:06.3]} 40. Nxa6 {[%clk 0:00:11.4]}
40... Rexe5 {[%clk 0:00:02.4]} 41. Rxe5 {[%clk 0:00:12.3]} 41... Rxe5 {[%clk
0:00:03]} 42. Nc7 {[%clk 0:00:12.5]} 42... Re7 {[%clk 0:00:03.3]} 43. a6 {[%clk
0:00:12.5]} 43... Rxc7 {[%clk 0:00:03]} 44. a7 {[%clk 0:00:13]} 44... Rc8 {[%clk
0:00:03.6]} 45. a8=Q {[%clk 0:00:12.6]} 45... Rxa8 {[%clk 0:00:04.1]} 46. Rxa8
{[%clk 0:00:13.3]} 46... Kf6 {[%clk 0:00:01.7]} 47. Rc8 {[%clk 0:00:13.8]} 47...
b4 {[%clk 0:00:01.6]} 48. Rxc6+ {[%clk 0:00:14.1]} 48... Kf5 {[%clk 0:00:02.2]}
49. Rb6 {[%clk 0:00:15]} 49... g5 {[%clk 0:00:02.6]} 50. Rb5+ {[%clk 0:00:15.2]}
50... Kg6 {[%clk 0:00:02.7]} 51. Rxb4 {[%clk 0:00:16.1]} 51... Kh5 {[%clk
0:00:03.1]} 52. Kg3 {[%clk 0:00:16.1]} 52... h6 {[%clk 0:00:03]} 53. Rb6 {[%clk
0:00:15.6]} 53... g4 {[%clk 0:00:03.1]} 54. Rb5+ {[%clk 0:00:16]} 54... Kg6
{[%clk 0:00:04]} 55. Kxg4 {[%clk 0:00:16.7]} 1-0

[Event "Early-Titled-Tuesday-Blitz-May-14-2024"]
[Site "Chess.com"]
[Date "2024.05.14"]
[Round "7"]
[White "elcala"]
[Black "mapleaff"]
[Result "0-1"]
[WhiteElo "1888"]
[BlackElo "2300"]
[TimeControl "180+1"]
[EndTime "9:20:21 PDT"]
[Termination "mapleaff won on time"]

1. d4 {[%clk 0:03:00.9]} 1... Nf6 {[%clk 0:02:53.4]} 2. Nf3 {[%clk 0:03:00.8]}
2... d5 {[%clk 0:02:53.4]} 3. Bf4 {[%clk 0:02:59.4]} 3... c5 {[%clk 0:02:49.9]}
4. c3 {[%clk 0:02:58.3]} 4... Nc6 {[%clk 0:02:43]} 5. e3 {[%clk 0:02:57.2]} 5...
Qb6 {[%clk 0:02:40.4]} 6. Qc2 {[%clk 0:02:52.1]} 6... Bf5 {[%clk 0:02:36.4]} 7.
dxc5 {[%clk 0:02:23.5]} 7... Bxc2 {[%clk 0:02:30.7]} 8. cxb6 {[%clk 0:02:22.9]}
8... Bxb1 {[%clk 0:02:16.8]} 9. Rxb1 {[%clk 0:02:19.7]} 9... axb6 {[%clk
0:02:17.3]} 10. a3 {[%clk 0:02:15.1]} 10... e6 {[%clk 0:02:16.4]} 11. Bb5 {[%clk
0:02:13.6]} 11... Be7 {[%clk 0:02:04.6]} 12. Ne5 {[%clk 0:02:05.8]} 12... O-O
{[%clk 0:01:41.2]} 13. Nxc6 {[%clk 0:01:57.9]} 13... bxc6 {[%clk 0:01:40.3]} 14.
Bxc6 {[%clk 0:01:57.7]} 14... Rac8 {[%clk 0:01:32.5]} 15. Bb5 {[%clk 0:01:53.7]}
15... Nh5 {[%clk 0:01:30.7]} 16. Bg3 {[%clk 0:01:49.3]} 16... Nxg3 {[%clk
0:01:30.7]} 17. hxg3 {[%clk 0:01:50.2]} 17... e5 {[%clk 0:01:29.2]} 18. f3
{[%clk 0:01:39.6]} 18... Rfd8 {[%clk 0:01:26]} 19. Bd3 {[%clk 0:01:36.6]} 19...
Bc5 {[%clk 0:01:24.4]} 20. Bxh7+ {[%clk 0:01:21.6]} 20... Kf8 {[%clk 0:01:24]}
21. Bf5 {[%clk 0:01:21.7]} 21... Rc7 {[%clk 0:01:21.2]} 22. Ke2 {[%clk
0:01:16.6]} 22... g6 {[%clk 0:01:18.6]} 23. Rh8+ {[%clk 0:01:15.2]} 23... Ke7
{[%clk 0:01:17.6]} 24. Rxd8 {[%clk 0:01:14.4]} 24... Kxd8 {[%clk 0:01:18.5]} 25.
Bd3 {[%clk 0:01:11]} 25... f5 {[%clk 0:01:16.9]} 26. b4 {[%clk 0:01:10.3]} 26...
Bf8 {[%clk 0:01:12.8]} 27. Kd2 {[%clk 0:01:08.3]} 27... Bg7 {[%clk 0:01:11.4]}
28. Rc1 {[%clk 0:00:53.3]} 28... Ke7 {[%clk 0:01:10.7]} 29. c4 {[%clk
0:00:46.3]} 29... d4 {[%clk 0:01:08]} 30. exd4 {[%clk 0:00:43]} 30... Bh6+
{[%clk 0:01:07.8]} 31. f4 {[%clk 0:00:39.9]} 31... exf4 {[%clk 0:01:06.7]} 32.
Re1+ {[%clk 0:00:37.3]} 32... Kf6 {[%clk 0:01:06.9]} 33. gxf4 {[%clk 0:00:34.9]}
33... Bxf4+ {[%clk 0:01:07.8]} 34. Kc3 {[%clk 0:00:31.9]} 34... Rh7 {[%clk
0:01:06.5]} 35. c5 {[%clk 0:00:27.2]} 35... bxc5 {[%clk 0:01:06.3]} 36. bxc5
{[%clk 0:00:21.8]} 36... Rh2 {[%clk 0:01:06.5]} 37. Re2 {[%clk 0:00:20.6]} 37...
g5 {[%clk 0:00:59.2]} 38. Bc4 {[%clk 0:00:20.7]} 38... g4 {[%clk 0:00:57]} 39.
Re6+ {[%clk 0:00:19.4]} 39... Kg5 {[%clk 0:00:57.4]} 40. Re2 {[%clk 0:00:18.3]}
40... Rh1 {[%clk 0:00:52.1]} 41. a4 {[%clk 0:00:16.5]} 41... Rc1+ {[%clk
0:00:50.9]} 42. Rc2 {[%clk 0:00:13.4]} 42... Ra1 {[%clk 0:00:51.3]} 43. Kb4
{[%clk 0:00:10.6]} 43... g3 {[%clk 0:00:48.5]} 44. a5 {[%clk 0:00:10.2]} 44...
Bc7 {[%clk 0:00:47.9]} 45. a6 {[%clk 0:00:09.4]} 45... f4 {[%clk 0:00:40.4]} 46.
d5 {[%clk 0:00:09.5]} 46... Rb1+ {[%clk 0:00:26.3]} 47. Ka3 {[%clk 0:00:04.6]}
47... Rb8 {[%clk 0:00:24]} 48. d6 {[%clk 0:00:03.8]} 48... Bd8 {[%clk
0:00:24.6]} 49. Ka4 {[%clk 0:00:02.2]} 49... f3 {[%clk 0:00:21.9]} 50. gxf3
{[%clk 0:00:00.7]} 50... Kf4 {[%clk 0:00:22.2]} 0-1

[Event "Early-Titled-Tuesday-Blitz-May-14-2024"]
[Site "Chess.com"]
[Date "2024.05.14"]
[Round "7"]
[White "BilodeauA"]
[Black "Skatchkov_V"]
[Result "1-0"]
[WhiteElo "2909"]
[BlackElo "2644"]
[TimeControl "180+1"]
[EndTime "9:20:25 PDT"]
[Termination "BilodeauA won on time"]

1. e4 {[%clk 0:02:57.4]} 1... e5 {[%clk 0:02:59.6]} 2. Nf3 {[%clk 0:02:57.4]}
2... Nf6 {[%clk 0:02:59.3]} 3. Nc3 {[%clk 0:02:56.6]} 3... Nc6 {[%clk
0:02:59.4]} 4. Bb5 {[%clk 0:02:57.3]} 4... Nd4 {[%clk 0:02:59.6]} 5. O-O {[%clk
0:02:54.3]} 5... c6 {[%clk 0:02:59.9]} 6. Bd3 {[%clk 0:02:47.7]} 6... Nxf3+
{[%clk 0:02:58.8]} 7. Qxf3 {[%clk 0:02:47.4]} 7... d6 {[%clk 0:02:55.7]} 8. Be2
{[%clk 0:02:47]} 8... Be7 {[%clk 0:02:55.7]} 9. d3 {[%clk 0:02:47.4]} 9... O-O
{[%clk 0:02:55.8]} 10. Qg3 {[%clk 0:02:47.4]} 10... Kh8 {[%clk 0:02:55.4]} 11.
f4 {[%clk 0:02:47]} 11... exf4 {[%clk 0:02:55.5]} 12. Qxf4 {[%clk 0:02:41.5]}
12... Be6 {[%clk 0:02:34.9]} 13. Kh1 {[%clk 0:02:40.9]} 13... Nd7 {[%clk
0:02:24.4]} 14. Bg4 {[%clk 0:02:29.4]} 14... Ne5 {[%clk 0:02:21.7]} 15. Bf5
{[%clk 0:02:02.8]} 15... g6 {[%clk 0:01:58.3]} 16. d4 {[%clk 0:02:01.3]} 16...
Nd7 {[%clk 0:01:52.2]} 17. Bg4 {[%clk 0:01:58.1]} 17... f5 {[%clk 0:01:48]} 18.
exf5 {[%clk 0:01:39.7]} 18... Bxf5 {[%clk 0:01:47.1]} 19. Bd2 {[%clk 0:01:40]}
19... Bd3 {[%clk 0:01:39.5]} 20. cxd3 {[%clk 0:01:36.6]} 20... Rxf4 {[%clk
0:01:39.1]} 21. Bxf4 {[%clk 0:01:37.4]} 21... Nf6 {[%clk 0:01:34.5]} 22. Be6
{[%clk 0:01:36.8]} 22... Nh5 {[%clk 0:01:32.7]} 23. Bh6 {[%clk 0:01:24.7]} 23...
Bf6 {[%clk 0:01:14.5]} 24. d5 {[%clk 0:01:21.4]} 24... Bg7 {[%clk 0:01:08.3]}
25. Bd2 {[%clk 0:01:16.5]} 25... Qh4 {[%clk 0:01:05.8]} 26. Ne4 {[%clk
0:01:13.9]} 26... Re8 {[%clk 0:00:52.2]} 27. g3 {[%clk 0:00:57.3]} 27... Qd8
{[%clk 0:00:50.3]} 28. Ng5 {[%clk 0:00:55.8]} 28... Qc7 {[%clk 0:00:24.5]} 29.
Nf7+ {[%clk 0:00:56.1]} 29... Kg8 {[%clk 0:00:24.7]} 30. Ng5+ {[%clk 0:00:49.8]}
30... Kh8 {[%clk 0:00:24.8]} 31. Bb4 {[%clk 0:00:34.3]} 31... c5 {[%clk
0:00:18.6]} 32. Nf7+ {[%clk 0:00:34.8]} 32... Kg8 {[%clk 0:00:18.4]} 33. Bd2
{[%clk 0:00:34.2]} 33... h6 {[%clk 0:00:17.6]} 34. Nxh6+ {[%clk 0:00:31.3]}
34... Kh7 {[%clk 0:00:18.1]} 35. Rf7 {[%clk 0:00:31.3]} 35... Re7 {[%clk
0:00:13.9]} 36. Raf1 {[%clk 0:00:29.1]} 36... Kh8 {[%clk 0:00:06.5]} 37. Bc3
{[%clk 0:00:27.2]} 37... Bxc3 {[%clk 0:00:02.9]} 38. bxc3 {[%clk 0:00:28.1]}
38... Rxf7 {[%clk 0:00:01.5]} 39. Rxf7 {[%clk 0:00:23.6]} 39... Qb6 {[%clk
0:00:02.1]} 40. Kg2 {[%clk 0:00:19.7]} 40... Qb2+ {[%clk 0:00:02.3]} 41. Kh3
{[%clk 0:00:20.3]} 41... Qd2 {[%clk 0:00:02.9]} 42. Ng4 {[%clk 0:00:19.2]} 42...
Qd1 {[%clk 0:00:02.9]} 43. Kh4 {[%clk 0:00:09.3]} 43... Qd2 {[%clk 0:00:02.2]}
44. a4 {[%clk 0:00:08.8]} 44... b6 {[%clk 0:00:01.6]} 45. Rxa7 {[%clk 0:00:08]}
45... Qxc3 {[%clk 0:00:02.1]} 46. Kg5 {[%clk 0:00:07.3]} 46... Qd2+ {[%clk
0:00:00.5]} 47. Kxg6 {[%clk 0:00:07.8]} 47... Qxd3+ {[%clk 0:00:00.2]} 48. Bf5
{[%clk 0:00:07.9]} 1-0

[Event "Early-Titled-Tuesday-Blitz-May-14-2024"]
[Site "Chess.com"]
[Date "2024.05.14"]
[Round "7"]
[White "David_George21"]
[Black "SanchezKelvin"]
[Result "1-0"]
[WhiteElo "2373"]
[BlackElo "2584"]
[TimeControl "180+1"]
[EndTime "9:20:25 PDT"]
[Termination "David_George21 won by resignation"]

1. e4 {[%clk 0:02:55.8]} 1... c5 {[%clk 0:02:59.1]} 2. Nf3 {[%clk 0:02:55.4]}
2... Nc6 {[%clk 0:02:58.4]} 3. d4 {[%clk 0:02:56.3]} 3... cxd4 {[%clk
0:02:59.3]} 4. Nxd4 {[%clk 0:02:57.2]} 4... Nf6 {[%clk 0:02:59.2]} 5. Nc3 {[%clk
0:02:56.8]} 5... e5 {[%clk 0:02:59.3]} 6. Ndb5 {[%clk 0:02:57.4]} 6... d6 {[%clk
0:02:59.3]} 7. Nd5 {[%clk 0:02:57.9]} 7... Nxd5 {[%clk 0:02:58.8]} 8. exd5
{[%clk 0:02:58.8]} 8... Ne7 {[%clk 0:02:59]} 9. c4 {[%clk 0:02:59.5]} 9... Nf5
{[%clk 0:02:58.6]} 10. Bd3 {[%clk 0:02:58.4]} 10... Be7 {[%clk 0:02:58]} 11. Qc2
{[%clk 0:02:54.5]} 11... Nh4 {[%clk 0:02:53.8]} 12. O-O {[%clk 0:02:50.4]} 12...
f5 {[%clk 0:02:48.2]} 13. c5 {[%clk 0:02:35]} 13... O-O {[%clk 0:02:29.8]} 14.
c6 {[%clk 0:02:35.1]} 14... bxc6 {[%clk 0:02:25.8]} 15. dxc6 {[%clk 0:02:36]}
15... Be6 {[%clk 0:02:23.2]} 16. Rd1 {[%clk 0:02:21.5]} 16... Qa5 {[%clk
0:02:09.3]} 17. Bc4 {[%clk 0:02:13.2]} 17... Bxc4 {[%clk 0:02:04.6]} 18. Qxc4+
{[%clk 0:02:13]} 18... Kh8 {[%clk 0:02:05.5]} 19. Bd2 {[%clk 0:02:09.5]} 19...
Qa6 {[%clk 0:02:00.3]} 20. Nxd6 {[%clk 0:02:03.7]} 20... Qxc4 {[%clk 0:01:53.4]}
21. Nxc4 {[%clk 0:02:04.6]} 21... Bf6 {[%clk 0:01:53.2]} 22. Ba5 {[%clk
0:01:58.4]} 22... Ng6 {[%clk 0:01:49.6]} 23. Rd7 {[%clk 0:01:54.9]} 23... Nf4
{[%clk 0:01:48.3]} 24. c7 {[%clk 0:01:49]} 24... e4 {[%clk 0:01:46.2]} 25. Nd6
{[%clk 0:01:44.1]} 25... g6 {[%clk 0:01:42.9]} 26. Bc3 {[%clk 0:01:00.6]} 26...
Bxc3 {[%clk 0:01:37.5]} 27. bxc3 {[%clk 0:01:01.5]} 27... Ne6 {[%clk 0:01:16.7]}
28. c8=Q {[%clk 0:00:41]} 28... Raxc8 {[%clk 0:01:14.1]} 29. Nxc8 {[%clk
0:00:40.9]} 29... Rxc8 {[%clk 0:01:15]} 30. Rxa7 {[%clk 0:00:41.5]} 30... Rxc3
{[%clk 0:01:10.5]} 31. Rb1 {[%clk 0:00:41.1]} 31... Rc8 {[%clk 0:01:09.7]} 32.
g3 {[%clk 0:00:40.8]} 32... Nd4 {[%clk 0:01:06.4]} 33. a4 {[%clk 0:00:32.1]}
33... h5 {[%clk 0:01:03.5]} 34. a5 {[%clk 0:00:32]} 34... h4 {[%clk 0:01:03.6]}
35. Kg2 {[%clk 0:00:26.2]} 35... g5 {[%clk 0:00:56.1]} 36. Rbb7 {[%clk
0:00:18.5]} 36... g4 {[%clk 0:00:51.2]} 37. Rh7+ {[%clk 0:00:17.8]} 37... Kg8
{[%clk 0:00:50.2]} 38. Rag7+ {[%clk 0:00:15.1]} 38... Kf8 {[%clk 0:00:49.8]} 39.
Rh8+ {[%clk 0:00:15.5]} 39... Kxg7 {[%clk 0:00:49.7]} 40. Rxc8 {[%clk
0:00:16.4]} 40... h3+ {[%clk 0:00:50]} 41. Kf1 {[%clk 0:00:16]} 41... Nf3 {[%clk
0:00:48.3]} 42. a6 {[%clk 0:00:15.8]} 42... Nxh2+ {[%clk 0:00:48.2]} 43. Ke2
{[%clk 0:00:15.9]} 43... Nf3 {[%clk 0:00:46]} 44. a7 {[%clk 0:00:16]} 44... h2
{[%clk 0:00:46.4]} 45. a8=Q {[%clk 0:00:14.3]} 45... h1=Q {[%clk 0:00:45.8]} 46.
Qb7+ {[%clk 0:00:14.5]} 46... Kf6 {[%clk 0:00:37.4]} 47. Rf8+ {[%clk 0:00:11]}
47... Ke5 {[%clk 0:00:34.6]} 48. Qc7+ {[%clk 0:00:07.2]} 48... Ke6 {[%clk
0:00:23.6]} 49. Re8+ {[%clk 0:00:05.7]} 49... Kd5 {[%clk 0:00:19.8]} 50. Rd8+
{[%clk 0:00:05]} 50... Ke6 {[%clk 0:00:18]} 51. Rd6+ {[%clk 0:00:04.7]} 51...
Ke5 {[%clk 0:00:17.3]} 52. Rd1+ {[%clk 0:00:04.8]} 52... Kf6 {[%clk 0:00:16.9]}
53. Rxh1 {[%clk 0:00:05]} 53... Nd4+ {[%clk 0:00:17.4]} 54. Kd1 {[%clk
0:00:03.8]} 1-0